fUSD/lending_fUSD_20251011
["ID","MTS","AMOUNT","RATE_DAILY","PERIOD"]
[390903601,1760208638244,-500.0,0.00014898,2]
[390903602,1760208638253,-500.0,0.00014898,2]
[390903604,1760208638262,-500.0,0.00014898,2]
[390903606,1760208638271,-500.0,0.00014898,2]
[390903608,1760208638281,-3077.314,0.00014899,2]
[390903609,1760208638291,-185.099,0.00014899,2]
[390903611,1760208638300,-445.74642813,0.00014899,2]
[390903613,1760208638309,-329.49696796,0.000149,2]
[390903615,1760208638319,-26589.8167,0.000149,2]
[390903617,1760208638328,-79306.26309802,0.000149,2]
[390903619,1760208638340,-41361.04190198,0.000149,2]
[390903621,1760208638351,-9046.45420668,0.000149,2]
[390903623,1760208638360,-2444.5411,0.000149,2]
[390903625,1760208638371,-213.98624418,0.00014948,2]
[390903627,1760208638380,-500.0,0.00014973,2]
[390903628,1760208638390,-582.12131672,0.00014973,2]
[390903630,1760208638399,-500.0,0.00014973,2]
[390903632,1760208638409,-500.0,0.00014973,2]
[390903634,1760208638419,-627.89178269,0.00014973,2]
[390903636,1760208638430,-164.64969539,0.0001499,2]
[390903638,1760208638439,-164.64969539,0.0001499,2]
[390903640,1760208638449,-516.46,0.00014991,2]
[390903642,1760208638458,-200.0,0.00014991,2]
[390903644,1760208638468,-200.0,0.00014991,2]
[390903646,1760208638477,-500.0,0.00014991,2]
[390903647,1760208638486,-500.0,0.00014991,2]
[390903649,1760208638496,-500.0,0.00014991,2]
[390903651,1760208638505,-500.0,0.00014991,2]
[390903653,1760208638514,-154.77115583,0.00014991,2]
[390903655,1760208638523,-374.01072987,0.00014991,2]
[390903657,1760208638532,-151.0,0.00014991,2]
[390903658,1760208638542,-151.0,0.00014991,2]
[390903660,1760208638551,-151.0,0.00014991,2]
[390903662,1760208638561,-151.0,0.00014991,2]
[390903664,1760208638570,-151.0,0.00014991,2]
[390903666,1760208638580,-151.0,0.00014991,2]
[390903668,1760208638589,-151.0,0.00014991,2]
[390903670,1760208638598,-151.0,0.00014991,2]
[390903672,1760208638608,-151.0,0.00014991,2]
[390903674,1760208638618,-151.0,0.00014991,2]
[390903676,1760208638627,-151.0,0.00014991,2]
[390903678,1760208638636,-151.0,0.00014991,2]
[390903680,1760208638646,-200.0,0.00014991,2]
[390903682,1760208638655,-151.0,0.00014991,2]
[390903684,1760208638664,-151.0,0.00014991,2]
[390903685,1760208638675,-151.0,0.00014991,2]
[390903687,1760208638685,-151.0,0.00014991,2]
[390903689,1760208638694,-151.0,0.00014991,2]
[390903691,1760208638703,-151.0,0.00014991,2]
[390903693,1760208638713,-151.0,0.00014991,2]
[390903695,1760208638723,-151.0,0.00014991,2]
[390903697,1760208638732,-151.0,0.00014991,2]
[390903699,1760208638742,-151.0,0.00014991,2]
[390903701,1760208638751,-151.0,0.00014991,2]
[390903703,1760208638761,-151.0,0.00014991,2]
[390903705,1760208638771,-151.0,0.00014991,2]
[390903706,1760208638780,-151.0,0.00014991,2]
[390903708,1760208638790,-151.0,0.00014991,2]
[390903710,1760208638799,-151.0,0.00014991,2]
[390903712,1760208638809,-151.0,0.00014991,2]
[390903714,1760208638818,-151.0,0.00014991,2]
[390903716,1760208638828,-151.0,0.00014991,2]
[390903718,1760208638837,-151.0,0.00014991,2]
[390903720,1760208638847,-151.0,0.00014991,2]
[390903722,1760208638856,-151.0,0.00014991,2]
[390903723,1760208638869,-3130.3893085,0.00014995,2]
[390903725,1760208638879,-1011.1004554,0.00014995,2]
[390903727,1760208638889,-2802.5376484,0.00014995,2]
[390903729,1760208638898,-194.13274538,0.00014999,2]
[390903731,1760208638909,-295.08156221,0.00014999,2]
[390903733,1760208638919,-287.70393225,0.00014999,2]
[390903735,1760208638930,-500.0,0.00014999,2]
[390903737,1760208638940,-489.01984796,0.00014999,2]
[390903739,1760208638951,-291.02478854,0.00014999,2]
[390903741,1760208638960,-400.73913492,0.00014999,2]
[390903743,1760208638970,-1000.0,0.00014999,2]
[390903745,1760208638979,-1000.0,0.00014999,2]
[390903747,1760208638989,-1000.0,0.00014999,2]
[390903749,1760208638999,-175.40722301,0.00014999,2]
[390903750,1760208639009,-82668.38073475,0.00015,2]
[390903753,1760208639023,-943.75481767,0.00015,2]
[390903757,1760208639057,-2150.29444335,0.00015,2]
[390903759,1760208639068,-24368.87631031,0.00015,2]
[390903761,1760208639079,-3808.12801413,0.00015,2]
[390903763,1760208639091,-542.46609112,0.00015,2]
[390903765,1760208639102,-11932.67379072,0.00015,2]
[390903875,1760208640289,-150.0,0.00014999,2]
[390903877,1760208640298,-4095.36215862,0.00015,2]
[390903883,1760208640349,-3324759.88177515,0.00015,2]
[390903885,1760208640360,-655.72133057,0.00015,2]
[390903888,1760208640372,-2335.64256114,0.00015,2]
[390903890,1760208640383,-12688.06173831,0.00015,2]
[390903895,1760208640416,-3096.16334906,0.00015,2]
[390903897,1760208640429,-12241.99999999,0.00015,2]
[390903899,1760208640439,-2157.92961323,0.00015,2]
[390904230,1760208643651,-485.74255521,0.00014898,2]
[390904234,1760208643672,-14.25744479,0.00014898,2]
[390904236,1760208643682,-284.68492264,0.00015,2]
[390904240,1760208643709,-1091.92002133,0.00015,2]
[390904257,1760208643873,-42695.73491757,0.00015,2]
[390904259,1760208643883,-500.0,0.00015,2]
[390904262,1760208643892,-1773.15046,0.00015,2]
[390904264,1760208643901,-412.0,0.00015065,2]
[390904266,1760208643912,-366.0,0.00015106,2]
[390904268,1760208643922,-541.0,0.00015127,2]
[390904270,1760208643935,-4215.24177809,0.000152,2]
[390904272,1760208643944,-354.0,0.00015208,2]
[390904274,1760208643954,-516.46,0.00015265,2]
[390904276,1760208643964,-9046.45420668,0.00015289,2]
[390904278,1760208643974,-527.0,0.00015469,2]
[390904280,1760208643983,-445.74642808,0.00015485,2]
[390904282,1760208643993,-1000.0,0.00015521,2]
[390904284,1760208644002,-500.0,0.00015521,2]
[390904287,1760208644016,-516.46,0.00015539,2]
[390904289,1760208644026,-200.0,0.00015539,2]
[390904291,1760208644036,-201.6366141,0.00015539,2]
[390904294,1760208644045,-639.28455088,0.00015575,2]
[390904296,1760208644055,-4215.24177809,0.000156,2]
[390904298,1760208644064,-255.0,0.0001562,2]
[390904300,1760208644073,-420.0,0.00015649,2]
[390904302,1760208644082,-420.0,0.0001565,2]
[390904304,1760208644092,-9046.45420668,0.00015678,2]
[390904306,1760208644102,-2500.0,0.00015703,2]
[390904308,1760208644112,-2000.0,0.00015703,2]
[390904310,1760208644122,-300.0,0.00015703,2]
[390904312,1760208644131,-300.0,0.00015703,2]
[390904314,1760208644140,-300.39839846,0.00015703,2]
[390904316,1760208644150,-2500.0,0.00015703,2]
[390904318,1760208644159,-2000.0,0.00015703,2]
[390904320,1760208644168,-195.0,0.00015703,2]
[390904322,1760208644178,-195.0,0.00015703,2]
[390904324,1760208644187,-250.0,0.00015703,2]
[390904326,1760208644197,-193.78,0.00015713,2]
[390904329,1760208644207,-1680.0,0.00015718,2]
[390904331,1760208644216,-329.49696793,0.00015732,2]
[390904333,1760208644226,-516.46,0.00015813,2]
[390904335,1760208644236,-213.98624416,0.00015961,2]
[390904337,1760208644247,-666.0,0.00015987,3]
[390904339,1760208644256,-4215.24177809,0.00016,2]
[390904341,1760208644265,-9046.45420668,0.00016067,2]
[390904343,1760208644275,-1500.0,0.00016068,2]
[390904345,1760208644284,-445.74642808,0.00016071,2]
[390904347,1760208644294,-475.23572958,0.00016085,2]
[390904349,1760208644304,-516.46,0.00016087,2]
[390904351,1760208644313,-200.0,0.00016087,2]
[390904353,1760208644323,-474.4,0.00016143,2]
[390904355,1760208644332,-808.18,0.00016143,2]
[390904357,1760208644341,-187.26976388,0.000162,2]
[390904359,1760208644351,-516.51,0.00016361,2]
[390904361,1760208644361,-234.08720485,0.000164,2]
[390904363,1760208644371,-4215.24177809,0.000164,2]
[390904365,1760208644381,-150.0,0.0001642,2]
[390904367,1760208644391,-10000.0,0.00016438,2]
[390904369,1760208644400,-10000.0,0.00016438,5]
[390904371,1760208644410,-4386.55543933,0.00016438,5]
[390904373,1760208644419,-342.11923711,0.00016438,2]
[390904375,1760208644428,-1000.0,0.00016438,2]
[390904377,1760208644438,-250.0,0.00016438,2]
[390904379,1760208644448,-9046.45420668,0.00016456,2]
[390904381,1760208644459,-234.08720485,0.000165,2]
[390904383,1760208644468,-300.0,0.00016507,2]
[390904385,1760208644478,-300.0,0.00016507,2]
[390904387,1760208644487,-300.0,0.00016507,2]
[390904389,1760208644497,-300.0,0.00016507,2]
[390904391,1760208644507,-300.0,0.00016507,2]
[390904393,1760208644516,-300.0,0.00016507,2]
[390904396,1760208644527,-300.0,0.00016507,2]
[390904398,1760208644536,-300.0,0.00016507,2]
[390904400,1760208644546,-300.0,0.00016507,2]
[390904402,1760208644555,-300.0,0.00016507,2]
[390904404,1760208644565,-300.0,0.00016507,2]
[390904406,1760208644574,-300.0,0.00016507,2]
[390904408,1760208644584,-300.0,0.00016507,2]
[390904410,1760208644593,-300.0,0.00016507,2]
[390904412,1760208644603,-300.0,0.00016507,2]
[390904414,1760208644612,-300.0,0.00016507,2]
[390904416,1760208644623,-300.0,0.00016507,2]
[390904418,1760208644632,-300.0,0.00016507,2]
[390904420,1760208644642,-300.0,0.00016507,2]
[390904422,1760208644655,-300.0,0.00016507,2]
[390904425,1760208644665,-340.138691,0.00016507,2]
[390904427,1760208644676,-151.0,0.00016507,2]
[390904429,1760208644686,-213.402574,0.00016507,2]
[390904431,1760208644695,-213.402574,0.00016507,2]
[390904433,1760208644704,-213.402574,0.00016507,2]
[390904435,1760208644714,-213.402574,0.00016507,2]
[390904437,1760208644723,-288.48082,0.00016507,2]
[390904439,1760208644733,-199.42929,0.00016507,2]
[390904441,1760208644743,-243.848007,0.00016507,2]
[390904443,1760208644753,-151.0,0.00016507,2]
[390904445,1760208644762,-3073.0,0.00016507,2]
[390904447,1760208644772,-740.0,0.00016507,2]
[390904449,1760208644782,-1266.0,0.00016507,2]
[390904451,1760208644792,-2048.0,0.00016507,2]
[390904453,1760208644801,-3405.0,0.00016507,2]
[390904455,1760208644812,-604.0,0.00016507,2]
[390904457,1760208644822,-1309.0,0.00016507,2]
[390904459,1760208644832,-571.0,0.00016507,2]
[390904461,1760208644841,-1587.0,0.00016507,2]
[390904463,1760208644850,-816.0,0.00016507,2]
[390904465,1760208644859,-2329.57,0.00016507,2]
[390904467,1760208644870,-622.0,0.00016507,2]
[390904469,1760208644881,-4120.0,0.00016507,2]
[390904471,1760208644891,-150.0,0.00016507,2]
[390904473,1760208644900,-901.0,0.00016507,2]
[390904475,1760208644911,-1696.0,0.00016507,2]
[390904477,1760208644920,-2565.058,0.00016507,2]
[390904479,1760208644932,-300.0,0.00016545,2]
[390904480,1760208644941,-329.49696793,0.00016563,2]
[390904481,1760208644953,-2000.0,0.00016616,2]
[390904482,1760208644963,-203.05725991,0.00016635,2]
[390904484,1760208644971,-445.74642808,0.00016657,2]
[390904486,1760208644981,-162.87,0.00016712,2]
[390904488,1760208644990,-1353.0,0.00016723,2]
[390904490,1760208645000,-4215.24177809,0.000168,2]
[390904492,1760208645009,-433.0,0.00016824,2]
[390904494,1760208645019,-2275.15913989,0.0001683,2]
[390904496,1760208645029,-3412.73870984,0.0001683,2]
[390904499,1760208645039,-1137.57956994,0.0001683,2]
[390904501,1760208645049,-322.6107,0.00016844,2]
[390904503,1760208645058,-646.65982734,0.00016844,2]
[390904505,1760208645068,-8565.75555911,0.00016844,2]
[390904507,1760208645077,-160.0,0.00016844,2]
[390904509,1760208645086,-500.0,0.00016844,2]
[390904511,1760208645100,-151.0,0.00016844,2]
[390904513,1760208645109,-1000.0,0.00016844,2]
[390904515,1760208645118,-248.71531821,0.00016844,2]
[390904517,1760208645128,-1000.0,0.00016844,2]
[390904519,1760208645137,-607.05092937,0.00016844,2]
[390904521,1760208645147,-151.0,0.00016844,2]
[390904523,1760208645157,-151.0,0.00016844,2]
[390904525,1760208645167,-170.863404,0.00016844,2]
[390904527,1760208645176,-163.6988,0.00016844,2]
[390904529,1760208645185,-163.6988,0.00016844,2]
[390904531,1760208645194,-207.653294,0.00016844,2]
[390904533,1760208645204,-207.653294,0.00016844,2]
[390904535,1760208645213,-163.6988,0.00016844,2]
[390904537,1760208645222,-207.653294,0.00016844,2]
[390904539,1760208645232,-163.6988,0.00016844,2]
[390904541,1760208645241,-207.653294,0.00016844,2]
[390904543,1760208645251,-151.0,0.00016844,2]
[390904546,1760208645261,-151.0,0.00016844,2]
[390904548,1760208645270,-151.0,0.00016844,2]
[390904550,1760208645279,-151.0,0.00016844,2]
[390904552,1760208645289,-151.0,0.00016844,2]
[390904554,1760208645298,-151.0,0.00016844,2]
[390904556,1760208645308,-151.0,0.00016844,2]
[390904558,1760208645317,-151.0,0.00016844,2]
[390904560,1760208645327,-151.0,0.00016844,2]
[390904562,1760208645336,-151.0,0.00016844,2]
[390904564,1760208645345,-151.0,0.00016844,2]
[390904566,1760208645354,-9046.45420668,0.00016844,2]
[390904568,1760208645362,-698.4842677,0.00016895,2]
[390904570,1760208645372,-234.08720485,0.000169,2]
[390904572,1760208645382,-2350.42,0.00016908,2]
[390904574,1760208645392,-1904.52,0.00016922,2]
[390904576,1760208645401,-2500.0,0.00016922,2]
[390904578,1760208645410,-213.98624416,0.00016974,2]
[390904580,1760208645420,-37207.98001981,0.00017,2]
[390904643,1760208646026,-2094.3879703,0.00014995,2]
[390904645,1760208646036,-20638.11106087,0.00017,2]
[390904647,1760208646045,-250.0,0.00017,2]
[390904649,1760208646055,-151.0,0.00017,2]
[390904651,1760208646065,-151.0,0.00017,2]
[390904653,1760208646074,-151.567455,0.00017,2]
[390904655,1760208646083,-151.494792,0.00017,2]
[390904657,1760208646093,-151.0,0.00017,2]
[390904659,1760208646102,-151.0,0.00017,2]
[390904661,1760208646111,-151.0,0.00017,2]
[390904663,1760208646121,-1773.15047,0.00017,2]
[390904665,1760208646130,-151.0,0.00017,2]
[390904667,1760208646140,-152.405667,0.00017,2]
[390904669,1760208646149,-151.0,0.00017,2]
[390904671,1760208646158,-203.664309,0.00017,2]
[390904673,1760208646168,-151.666692,0.00017,2]
[390904675,1760208646178,-151.0,0.00017,2]
[390904677,1760208646187,-151.0,0.00017,2]
[390904679,1760208646196,-152.502187,0.00017,2]
[390904681,1760208646206,-172.0,0.00017061,2]
[390904683,1760208646215,-172.0,0.00017062,2]
[390904685,1760208646225,-209.67,0.000171,7]
[390904687,1760208646235,-1000.0,0.000171,2]
[390904689,1760208646245,-172.0,0.00017114,2]
[390904691,1760208646256,-587.0,0.00017139,2]
[390904693,1760208646265,-587.0,0.0001714,2]
[390904695,1760208646275,-172.0,0.00017151,2]
[390904697,1760208646284,-172.0,0.00017154,2]
[390904699,1760208646294,-2500.0,0.00017164,2]
[390904701,1760208646303,-172.0,0.00017186,2]
[390904703,1760208646313,-1000.0,0.000172,2]
[390904705,1760208646322,-4215.24177809,0.000172,2]
[390904707,1760208646331,-172.0,0.00017204,2]
[390904709,1760208646341,-9046.45420668,0.00017233,2]
[390904711,1760208646350,-445.74642808,0.00017242,2]
[390904713,1760208646360,-172.0,0.00017262,2]
[390904715,1760208646368,-172.0,0.00017264,2]
[390904717,1760208646377,-172.0,0.00017288,2]
[390904719,1760208646387,-2351.0,0.0001729,2]
[390904721,1760208646396,-172.0,0.00017294,2]
[390904723,1760208646406,-155.8529065,0.00017319,2]
[390904725,1760208646415,-172.0,0.00017324,2]
[390904727,1760208646424,-2819.77019319,0.00017379,2]
[390904729,1760208646433,-151.0,0.00017392,2]
[390904731,1760208646443,-329.49696793,0.00017395,2]
[390904733,1760208646453,-1000.0,0.000174,2]
[390904735,1760208646463,-265.0,0.0001745,2]
[390904737,1760208646472,-172.0,0.0001747,2]
[390904739,1760208646482,-168.0,0.00017505,2]
[390904741,1760208646491,-168.0,0.00017532,2]
[390904743,1760208646501,-4550.31827978,0.00017534,2]
[390904745,1760208646510,-172.0,0.00017551,2]
[390904747,1760208646520,-172.0,0.00017561,2]
[390904749,1760208646529,-172.0,0.00017576,2]
[390904751,1760208646538,-200.0,0.00017592,2]
[390904753,1760208646547,-4215.24177809,0.000176,2]
[390904755,1760208646556,-2014.24,0.000176,2]
[390904757,1760208646566,-168.0,0.00017615,2]
[390904759,1760208646575,-9046.45420668,0.00017622,2]
[390904761,1760208646584,-172.0,0.00017634,2]
[390904763,1760208646593,-3899.3150172,0.00017674,2]
[390904765,1760208646602,-1075.9956482,0.00017674,2]
[390904767,1760208646612,-151.0,0.00017674,2]
[390904769,1760208646621,-213.402574,0.00017674,2]
[390904771,1760208646630,-213.402574,0.00017674,2]
[390904773,1760208646640,-213.402574,0.00017674,2]
[390904775,1760208646649,-213.402574,0.00017674,2]
[390904777,1760208646658,-295.00994507,0.00017674,2]
[390904779,1760208646668,-2324.69128511,0.00017712,2]
[390904781,1760208646677,-207.4,0.0001773,2]
[390904783,1760208646687,-585553.11867324,0.00017734,2]
[390904888,1760208647784,-1542.81306825,0.00017734,2]
[390904889,1760208647803,-61633.0,0.00017734,2]
[390904892,1760208647818,-6384.2133351,0.00017734,2]
[390904909,1760208647976,-1000.0,0.000148,2]
[390904911,1760208647986,-801168.38493986,0.00017734,2]
[390904913,1760208647995,-43126.17532672,0.0001774,2]
[390904915,1760208648005,-32133.29157415,0.00017742,2]
[390904917,1760208648015,-170356.57687647,0.00017742,2]
[390904919,1760208648024,-677.10446506,0.00017744,2]
[390904921,1760208648034,-25723.23803013,0.00017747,2]
[390905748,1760208664516,199.9,0.00027397,120]
[390905869,1760209345607,424.24,7.505e-05,2]
[390905871,1760209345700,424.24,7.9e-05,2]
[390905873,1760209345811,424.24,8.295e-05,2]
[390905874,1760209345918,424.24,8.69e-05,2]
[390905876,1760209346019,424.24,9.085e-05,2]
[390905878,1760209346214,424.24,9.48e-05,2]
[390905880,1760209346445,424.24,9.875e-05,2]
[390905881,1760209346625,424.24,0.00010271,2]
[390905883,1760209346819,424.24,0.00010666,2]
[390905888,1760209347435,424.24,0.00011061,2]
[390905889,1760209347531,424.24,0.00011456,2]
[390905890,1760209347649,424.24,0.00011851,2]
[390905892,1760209347766,424.24,0.00012246,2]
[390906741,1760209777955,170.28,0.00011564,2]
[390906881,1760209832659,-424.24,0.00012641,2]
[390906883,1760209832668,-224.21120674,0.00013036,2]
[390906889,1760209832709,-200.02879326,0.00013036,2]
[390906891,1760209832718,-361.110072,0.00013363,2]
[390906893,1760209832727,-424.24,0.00013431,2]
[390906895,1760209832736,-137.88362422,0.00013699,2]
[390906899,1760209832773,-500.45637578,0.00013699,2]
[390906901,1760209832783,-225.49363814,0.00013826,2]
[390906905,1760209832834,-198.74636186,0.00013826,2]
[390906906,1760209832844,-300.0,0.00013887,2]
[390906908,1760209832854,-1200.0,0.00013887,2]
[390906909,1760209832863,-300.0,0.00013887,2]
[390906910,1760209832872,-500.0,0.00013887,2]
[390906911,1760209832881,-500.0,0.00013887,2]
[390906912,1760209832890,-500.0,0.00013887,2]
[390906913,1760209832899,-500.0,0.00013887,2]
[390906914,1760209832908,-500.0,0.00013887,2]
[390906915,1760209832917,-500.0,0.00013887,2]
[390906916,1760209832926,-500.0,0.00013887,2]
[390906917,1760209832935,-500.0,0.00013887,2]
[390906918,1760209832944,-500.0,0.00013887,2]
[390906919,1760209832953,-500.0,0.00013887,2]
[390906920,1760209832962,-500.0,0.00013887,2]
[390906921,1760209832971,-500.0,0.00013887,2]
[390906922,1760209832981,-500.0,0.00013887,2]
[390906923,1760209832990,-500.0,0.00013887,2]
[390906924,1760209833000,-500.0,0.00013887,2]
[390906925,1760209833010,-500.0,0.00013887,2]
[390906927,1760209833019,-422.63071183,0.00013887,2]
[390906928,1760209833030,-77.36928817,0.00013887,2]
[390906929,1760209833041,-430.0,0.00013888,2]
[390906930,1760209833051,-37392.70488394,0.00013889,2]
[390906931,1760209833060,-150.0,0.00013904,2]
[390906932,1760209833070,-1032.43558728,0.00013905,2]
[390906933,1760209833079,-2500.0,0.00013905,2]
[390906934,1760209833088,-2500.0,0.00013905,2]
[390906935,1760209833097,-2500.0,0.00013905,2]
[390906936,1760209833107,-2500.0,0.00013905,2]
[390906937,1760209833116,-2500.0,0.00013905,2]
[390906938,1760209833126,-424.24,0.00014221,2]
[390906939,1760209833135,-534.98536353,0.0001437,2]
[390906940,1760209833144,-790.7211461,0.00014434,2]
[390906941,1760209833153,-16341.73,0.00014459,2]
[390906942,1760209833162,-666.0,0.00014502,3]
[390906943,1760209833172,-2964.13,0.00014558,2]
[390906944,1760209833181,-424.24,0.00014616,2]
[390906945,1760209833190,-302.64,0.00014718,2]
[390906946,1760209833199,-1126.0,0.00014772,2]
[390906947,1760209833208,-1000.0,0.000148,2]
[390906948,1760209833218,-565.3731,0.000149,2]
[390906949,1760209833228,-1600.0,0.00014992,2]
[390906950,1760209833242,-240.54380068,0.00015,2]
[390906952,1760209833251,-424.24,0.00015011,2]
[390906953,1760209833260,-255.0,0.00015016,2]
[390906955,1760209833269,-151.0,0.00015058,2]
[390906956,1760209833279,-151.0,0.00015058,2]
[390906957,1760209833287,-151.0,0.00015058,2]
[390906958,1760209833296,-151.0,0.00015058,2]
[390906959,1760209833305,-151.0,0.00015058,2]
[390906960,1760209833315,-151.0,0.00015058,2]
[390906961,1760209833324,-151.0,0.00015058,2]
[390906962,1760209833333,-151.0,0.00015058,2]
[390906963,1760209833342,-151.0,0.00015058,2]
[390906964,1760209833352,-151.0,0.00015058,2]
[390906965,1760209833361,-151.0,0.00015058,2]
[390906966,1760209833370,-151.0,0.00015058,2]
[390906967,1760209833379,-151.0,0.00015058,2]
[390906968,1760209833388,-151.0,0.00015058,2]
[390906969,1760209833397,-151.0,0.00015058,2]
[390906970,1760209833407,-151.0,0.00015058,2]
[390906971,1760209833416,-151.0,0.00015058,2]
[390906972,1760209833426,-151.0,0.00015058,2]
[390906973,1760209833435,-291.67471157,0.00015058,2]
[390906974,1760209833444,-255.32055807,0.00015058,2]
[390906975,1760209833454,-200.0,0.00015058,2]
[390906977,1760209833463,-420.0,0.00015216,2]
[390906978,1760209833472,-420.0,0.00015216,2]
[390906979,1760209833483,-1680.0,0.00015276,2]
[390906981,1760209833492,-2631.22903476,0.00015402,2]
[390906982,1760209833501,-10241.66183238,0.00015845,2]
[390906983,1760209833513,-674.89686366,0.00015845,2]
[390906984,1760209833523,-162.65,0.00015997,2]
[390906985,1760209833533,-8546.44,0.00015997,2]
[390906986,1760209833542,-197.06768799,0.00016,2]
[390906987,1760209833552,-377.00805143,0.00016,2]
[390906988,1760209833562,-500.0,0.00016,2]
[390906989,1760209833572,-150.0,0.00016,2]
[390906990,1760209833581,-150.0,0.00016,2]
[390906991,1760209833590,-150.0,0.00016,2]
[390906992,1760209833599,-150.0,0.00016,2]
[390906993,1760209833609,-150.0,0.00016,2]
[390906994,1760209833619,-150.0,0.00016,2]
[390906995,1760209833628,-150.0,0.00016,2]
[390906996,1760209833637,-150.0,0.00016,2]
[390906997,1760209833647,-150.0,0.00016,2]
[390906998,1760209833656,-475.23572958,0.00016038,2]
[390906999,1760209833665,-500.0,0.00016055,2]
[390907001,1760209833674,-150.0,0.00016055,2]
[390907002,1760209833683,-150.0,0.00016055,2]
[390907003,1760209833693,-150.0,0.00016055,2]
[390907004,1760209833702,-289.0,0.00016055,2]
[390907006,1760209833711,-150.0,0.00016055,2]
[390907007,1760209833720,-500.0,0.0001611,2]
[390907009,1760209833732,-200.0,0.0001611,2]
[390907010,1760209833742,-200.0,0.0001611,2]
[390907011,1760209833751,-200.0,0.0001611,2]
[390907012,1760209833761,-2309.84,0.00016116,2]
[390907013,1760209833770,-368.66,0.00016116,2]
[390907014,1760209833779,-1673.75012916,0.00016129,2]
[390907015,1760209833788,-500.0,0.00016164,2]
[390907016,1760209833797,-197.06768799,0.000162,2]
[390907017,1760209833806,-377.00805143,0.000162,2]
[390907018,1760209833816,-433.0,0.00016212,2]
[390907019,1760209833825,-500.0,0.00016219,2]
[390907020,1760209833835,-500.0,0.00016274,2]
[390907021,1760209833845,-500.0,0.00016329,2]
[390907022,1760209833858,-2564.67638647,0.00016338,2]
[390907023,1760209833867,-4218.38921553,0.00016338,2]
[390907024,1760209833875,-150.0,0.00016338,2]
[390907025,1760209833884,-150.0,0.00016338,2]
[390907026,1760209833894,-150.0,0.00016338,2]
[390907027,1760209833903,-150.0,0.00016338,2]
[390907029,1760209833912,-150.0,0.00016338,2]
[390907030,1760209833921,-153.40201624,0.00016338,2]
[390907031,1760209833930,-227.1741417,0.00016338,2]
[390907033,1760209833939,-1447.2927,0.00016338,2]
[390907034,1760209833948,-1843.7413,0.00016338,2]
[390907035,1760209833956,-3184.98586955,0.00016338,2]
[390907037,1760209833968,-608.24647079,0.00016338,2]
[390907038,1760209833982,-1117.41460021,0.00016338,2]
[390907040,1760209834025,-500.0,0.00013887,2]
[390907041,1760209834034,-199.36702806,0.00013887,2]
[390907042,1760209834045,-300.63297194,0.00013887,2]
[390907043,1760209834055,-635.39234761,0.00016338,2]
[390907077,1760209837978,-500.0,0.00013887,2]
[390907078,1760209837988,-500.0,0.00013887,2]
[390907079,1760209837997,-500.0,0.00013887,2]
[390907080,1760209838007,-500.0,0.00013887,2]
[390907081,1760209838017,-500.0,0.00013887,2]
[390907082,1760209838026,-500.0,0.00013887,2]
[390907083,1760209838036,-500.0,0.00013887,2]
[390907084,1760209838045,-500.0,0.00013887,2]
[390907085,1760209838055,-334.52092005,0.00013887,2]
[390907087,1760209838067,-165.47907995,0.00013887,2]
[390907088,1760209838077,-500.0,0.00013887,2]